Workbook

Sheet Variables
A1: Variables
A3: Constants used in this workbook
A4: Symbol | B4: Name | C4: Value | D4: Units
A5: R | B5: Universal gas constant | C5: 8.31447215 | D5: J/K.mol
A6: F | B6: Faraday constant | C6: 96485.33992 | D6: C/mol
A7: mo | B7: mass of sample | C7: 0.0239494 | D7: kg
A8: T | B8: temperature | C8: =273.15+C11 -> 304.95 | D8: K
A9: C | B9: concentration of acid | C9: 0.100332 | D9: mol/kg soln
A10: D+ | B10: density of titrant | C10: =(-0.00000401*C11^2-0.00011179*C11+1.02896024)/1000 -> 0.001021350246 | D10: kg/cm3 | E10: Note: Make sure you change this function according to the acid batch specific density function coefficients
A11: t | B11: sample and titrant temperature (deg C) | C11: 31.8 | D11: deg C
A12: Other variables used in Equations from Dickson's SOP 3b
A13: AT | B13: Total alkalinity
A14: ST | B14: total sulfate concentration | C14: let = 0 if salinity known
A15: KS | B15: Acid dissociation constant of [HSO4-]
A16: Z | B16: (1+ST/KS) | C16: let = 1 if salinity known
A17: f[H'] | B17: total hydrogen ion concentration | C17: neg[(m0AT + mC)/(m0 + m)]
A18: FT | B18: total fluoride concentration | C18: let = 0 if salinity known
A19: m | B19: mass of acid added
A21: Total alkalinity calculations are reported to the first decimal placed and are good with SD ~ +- 5 umol/kg | I21: Reference Material:
I22: http://wwweng.uwyo.edu/classes/meref/Curve_Fitting.pdf
A24: Millero, Lee and Roche. 1997. Distribution of alkalinity in the surface waters of the major oceans. Marine Chemistry 60: 111-130.

Sheet data
C1: for nonlinear least squares --> | F1: X-independent | J1: Y-dependent
C3: for regression --> | F3: X | H3: Y | J3: Measured | K3: Predicted | O3: Paste Regression output in cell O4
E4: V (cm3) | F4: m (kg) | G4: E (volts) | H4: F1 | I4: Eo | J4: E (volts) | K4: E* (volts) | L4: (E*-E)^2 | M4: (Eav-E)^2 | O4: SUMMARY OUTPUT
A5: x-intercept | B5: =-($P$20)/$P$21 -> 0.0005309657173 | C5: kg | E5: 0.64 | F5: =IF(E5>0,E5*Variables!$C$10,"") -> 0.0006536641572 | G5: 0.2213826527 | H5: =IF(G5>0,(Variables!$C$7+F5)*EXP(G5/((Variables!$C$5*Variables!$C$8)/Variables!$C$6)),"") -> 112.1196384 | I5: =IF(G5>0,G5-(Variables!$C$5*Variables!$C$8/Variables!$C$6)*LN((-Variables!$C$7*$B$7+F5*Variables!$C$9)/(Variables!$C$7+F5)),"") -> 0.4211042992 | J5: =IF(G5>0,G5,"") -> 0.2213826527 | K5: =IF(G5>0,$D$24+(((Variables!$C$5*Variables!$C$8)/Variables!$C$6)*LN((F5*Variables!$C$9-Variables!$C$7*$D$25)/(Variables!$C$7+F5))),"") -> 0.2211066959 | L5: =IF(G5>0,(K5-J5)^2,"") -> 7.615212651e-08 | M5: =IF(G5>0,($B$15-J5)^2,"") -> 0.0002661353152
A6: initial estimate of AT | B6: =1000000*($B$5)*Variables!$C$9/(Variables!$C$7) -> 2224.391941 | C6: umol/kg soln | E6: 0.66 | F6: =IF(E6>0,E6*Variables!$C$10,"") -> 0.0006740911621 | G6: 0.2248912703 | H6: =IF(G6>0,(Variables!$C$7+F6)*EXP(G6/((Variables!$C$5*Variables!$C$8)/Variables!$C$6)),"") -> 128.2411721 | I6: =IF(G6>0,G6-(Variables!$C$5*Variables!$C$8/Variables!$C$6)*LN((-Variables!$C$7*$B$7+F6*Variables!$C$9)/(Variables!$C$7+F6)),"") -> 0.420588038 | J6: =IF(G6>0,G6,"") -> 0.2248912703 | K6: =IF(G6>0,$D$24+(((Variables!$C$5*Variables!$C$8)/Variables!$C$6)*LN((F6*Variables!$C$9-Variables!$C$7*$D$25)/(Variables!$C$7+F6))),"") -> 0.2251070395 | L6: =IF(G6>0,(K6-J6)^2,"") -> 4.65563402e-08 | M6: =IF(G6>0,($B$15-J6)^2,"") -> 0.0001639689621 | O6: Regression Statistics
B7: =($B$5)*Variables!$C$9/(Variables!$C$7) -> 0.002224391941 | C7: mol/kg soln | E7: 0.68 | F7: =IF(E7>0,E7*Variables!$C$10,"") -> 0.000694518167 | G7: 0.228546381 | H7: =IF(G7>0,(Variables!$C$7+F7)*EXP(G7/((Variables!$C$5*Variables!$C$8)/Variables!$C$6)),"") -> 147.5006705 | I7: =IF(G7>0,G7-(Variables!$C$5*Variables!$C$8/Variables!$C$6)*LN((-Variables!$C$7*$B$7+F7*Variables!$C$9)/(Variables!$C$7+F7)),"") -> 0.4207590544 | J7: 0.228546381 | K7: =IF(G7>0,$D$24+(((Variables!$C$5*Variables!$C$8)/Variables!$C$6)*LN((F7*Variables!$C$9-Variables!$C$7*$D$25)/(Variables!$C$7+F7))),"") -> 0.2285727122 | L7: 6.93331362e-10 | M7: 8.37211444e-05 | O7: Multiple R | P7: 0.9999645508
E8: 0.7 | F8: =IF(E8>0,E8*Variables!$C$10,"") -> 0.0007149451719 | G8: 0.2314902347 | H8: =IF(G8>0,(Variables!$C$7+F8)*EXP(G8/((Variables!$C$5*Variables!$C$8)/Variables!$C$6)),"") -> 165.1222449 | I8: =IF(G8>0,G8-(Variables!$C$5*Variables!$C$8/Variables!$C$6)*LN((-Variables!$C$7*$B$7+F8*Variables!$C$9)/(Variables!$C$7+F8)),"") -> 0.4206319448 | J8: 0.2314902347 | K8: =IF(G8>0,$D$24+(((Variables!$C$5*Variables!$C$8)/Variables!$C$6)*LN((F8*Variables!$C$9-Variables!$C$7*$D$25)/(Variables!$C$7+F8))),"") -> 0.2316293356 | L8: 1.934906284e-08 | M8: 3.851533285e-05 | O8: R Square | P8: 0.9999291029
A9: AVG Eo= | B9: =AVERAGE(I5:I25) -> 0.420752941 | C9: volts | E9: 0.72 | F9: =IF(E9>0,E9*Variables!$C$10,"") -> 0.0007353721768 | G9: 0.2343213857 | H9: =IF(G9>0,(Variables!$C$7+F9)*EXP(G9/((Variables!$C$5*Variables!$C$8)/Variables!$C$6)),"") -> 184.0578267 | I9: =IF(G9>0,G9-(Variables!$C$5*Variables!$C$8/Variables!$C$6)*LN((-Variables!$C$7*$B$7+F9*Variables!$C$9)/(Variables!$C$7+F9)),"") -> 0.4207180738 | J9: 0.2343213857 | K9: =IF(G9>0,$D$24+(((Variables!$C$5*Variables!$C$8)/Variables!$C$6)*LN((F9*Variables!$C$9-Variables!$C$7*$D$25)/(Variables!$C$7+F9))),"") -> 0.2343628781 | L9: 1.721619868e-09 | M9: 1.139009349e-05 | O9: Adjusted R Square | P9: 0.9999226577
E10: 0.74 | F10: =IF(E10>0,E10*Variables!$C$10,"") -> 0.0007557991817 | G10: 0.2367660257 | H10: =IF(G10>0,(Variables!$C$7+F10)*EXP(G10/((Variables!$C$5*Variables!$C$8)/Variables!$C$6)),"") -> 202.1692046 | I10: =IF(G10>0,G10-(Variables!$C$5*Variables!$C$8/Variables!$C$6)*LN((-Variables!$C$7*$B$7+F10*Variables!$C$9)/(Variables!$C$7+F10)),"") -> 0.4206814283 | J10: 0.2367660257 | K10: =IF(G10>0,$D$24+(((Variables!$C$5*Variables!$C$8)/Variables!$C$6)*LN((F10*Variables!$C$9-Variables!$C$7*$D$25)/(Variables!$C$7+F10))),"") -> 0.2368347663 | L10: 4.725273621e-09 | M10: 8.65423216e-07 | O10: Standard Error | P10: 0.6307191713
A11: Function: | E11: 0.76 | F11: =IF(E11>0,E11*Variables!$C$10,"") -> 0.0007762261867 | G11: 0.239116073 | H11: =IF(G11>0,(Variables!$C$7+F11)*EXP(G11/((Variables!$C$5*Variables!$C$8)/Variables!$C$6)),"") -> 221.264697 | I11: =IF(G11>0,G11-(Variables!$C$5*Variables!$C$8/Variables!$C$6)*LN((-Variables!$C$7*$B$7+F11*Variables!$C$9)/(Variables!$C$7+F11)),"") -> 0.4207679874 | J11: 0.239116073 | K11: =IF(G11>0,$D$24+(((Variables!$C$5*Variables!$C$8)/Variables!$C$6)*LN((F11*Variables!$C$9-Variables!$C$7*$D$25)/(Variables!$C$7+F11))),"") -> 0.2390904201 | L11: 6.580715514e-10 | M11: 2.015735713e-06 | O11: Observations | P11: 13
A12: Eo = E - (RT/F)ln[(-m0AT+mC)/(m0+m)] | E12: 0.78 | F12: =IF(E12>0,E12*Variables!$C$10,"") -> 0.0007966531916 | G12: 0.24119927 | H12: =IF(G12>0,(Variables!$C$7+F12)*EXP(G12/((Variables!$C$5*Variables!$C$8)/Variables!$C$6)),"") -> 239.7170029 | I12: =IF(G12>0,G12-(Variables!$C$5*Variables!$C$8/Variables!$C$6)*LN((-Variables!$C$7*$B$7+F12*Variables!$C$9)/(Variables!$C$7+F12)),"") -> 0.4207706005 | J12: 0.24119927 | K12: =IF(G12>0,$D$24+(((Variables!$C$5*Variables!$C$8)/Variables!$C$6)*LN((F12*Variables!$C$9-Variables!$C$7*$D$25)/(Variables!$C$7+F12))),"") -> 0.2411643723 | L12: 1.21785072e-09 | M12: 1.227075032e-05
A13: for nonlinear least squares: | E13: 0.8 | F13: =IF(E13>0,E13*Variables!$C$10,"") -> 0.0008170801965 | G13: 0.2431033105 | H13: =IF(G13>0,(Variables!$C$7+F13)*EXP(G13/((Variables!$C$5*Variables!$C$8)/Variables!$C$6)),"") -> 257.9433973 | I13: =IF(G13>0,G13-(Variables!$C$5*Variables!$C$8/Variables!$C$6)*LN((-Variables!$C$7*$B$7+F13*Variables!$C$9)/(Variables!$C$7+F13)),"") -> 0.4207498352 | J13: 0.2431033105 | K13: =IF(G13>0,$D$24+(((Variables!$C$5*Variables!$C$8)/Variables!$C$6)*LN((F13*Variables!$C$9-Variables!$C$7*$D$25)/(Variables!$C$7+F13))),"") -> 0.2430834921 | L13: 3.927693574e-10 | M13: 2.923568768e-05 | O13: ANOVA
E14: 0.82 | F14: =IF(E14>0,E14*Variables!$C$10,"") -> 0.0008375072014 | G14: 0.2448724955 | H14: =IF(G14>0,(Variables!$C$7+F14)*EXP(G14/((Variables!$C$5*Variables!$C$8)/Variables!$C$6)),"") -> 276.1347093 | I14: =IF(G14>0,G14-(Variables!$C$5*Variables!$C$8/Variables!$C$6)*LN((-Variables!$C$7*$B$7+F14*Variables!$C$9)/(Variables!$C$7+F14)),"") -> 0.4207284856 | J14: 0.2448724955 | K14: =IF(G14>0,$D$24+(((Variables!$C$5*Variables!$C$8)/Variables!$C$6)*LN((F14*Variables!$C$9-Variables!$C$7*$D$25)/(Variables!$C$7+F14))),"") -> 0.2448690974 | L14: 1.154680905e-11 | M14: 5.149768249e-05 | P14: df | Q14: SS | R14: MS | S14: F | T14: Significance F
A15: Eav = | B15: =AVERAGE(J:J) -> 0.2376963069 | E15: 0.84 | F15: =IF(E15>0,E15*Variables!$C$10,"") -> 0.0008579342063 | G15: 0.2466030195 | H15: =IF(G15>0,(Variables!$C$7+F15)*EXP(G15/((Variables!$C$5*Variables!$C$8)/Variables!$C$6)),"") -> 295.1741733 | I15: =IF(G15>0,G15-(Variables!$C$5*Variables!$C$8/Variables!$C$6)*LN((-Variables!$C$7*$B$7+F15*Variables!$C$9)/(Variables!$C$7+F15)),"") -> 0.4207854068 | J15: 0.2466030195 | K15: =IF(G15>0,$D$24+(((Variables!$C$5*Variables!$C$8)/Variables!$C$6)*LN((F15*Variables!$C$9-Variables!$C$7*$D$25)/(Variables!$C$7+F15))),"") -> 0.2465383861 | L15: 4.177471765e-09 | M15: 7.932952893e-05 | O15: Regression | P15: 1 | Q15: 61717.09347 | R15: 61717.09347 | S15: 155143.4343 | T15: 3.546962454e-24
A16: sums: | E16: 0.86 | F16: =IF(E16>0,E16*Variables!$C$10,"") -> 0.0008783612112 | G16: 0.2481063755 | H16: =IF(G16>0,(Variables!$C$7+F16)*EXP(G16/((Variables!$C$5*Variables!$C$8)/Variables!$C$6)),"") -> 312.810349 | I16: =IF(G16>0,G16-(Variables!$C$5*Variables!$C$8/Variables!$C$6)*LN((-Variables!$C$7*$B$7+F16*Variables!$C$9)/(Variables!$C$7+F16)),"") -> 0.4207179079 | J16: 0.2481063755 | K16: =IF(G16>0,$D$24+(((Variables!$C$5*Variables!$C$8)/Variables!$C$6)*LN((F16*Variables!$C$9-Variables!$C$7*$D$25)/(Variables!$C$7+F16))),"") -> 0.2481054336 | L16: 8.871137606e-13 | M16: 0.0001083695278 | O16: Residual | P16: 11 | Q16: 4.375873404 | R16: 0.3978066731
A17: (E*-E)^2 = | B17: =SUM(L:L) -> 1.607814889e-07 | E17: 0.88 | F17: =IF(E17>0,E17*Variables!$C$10,"") -> 0.0008987882161 | G17: 0.249653496 | H17: =IF(G17>0,(Variables!$C$7+F17)*EXP(G17/((Variables!$C$5*Variables!$C$8)/Variables!$C$6)),"") -> 332.052575 | I17: =IF(G17>0,G17-(Variables!$C$5*Variables!$C$8/Variables!$C$6)*LN((-Variables!$C$7*$B$7+F17*Variables!$C$9)/(Variables!$C$7+F17)),"") -> 0.4207851712 | J17: 0.249653496 | K17: =IF(G17>0,$D$24+(((Variables!$C$5*Variables!$C$8)/Variables!$C$6)*LN((F17*Variables!$C$9-Variables!$C$7*$D$25)/(Variables!$C$7+F17))),"") -> 0.2495819059 | L17: 5.12513715e-09 | M17: 0.0001429743706 | O17: Total | P17: 12 | Q17: 61721.46934
A18: (Eav-E)^2 = | B18: =SUM(M:M) -> 0.0009902895547 | F18: =IF(E18>0,E18*Variables!$C$10,"") ->  | H18: =IF(G18>0,(Variables!$C$7+F18)*EXP(G18/((Variables!$C$5*Variables!$C$8)/Variables!$C$6)),"") ->  | I18: =IF(G18>0,G18-(Variables!$C$5*Variables!$C$8/Variables!$C$6)*LN((-Variables!$C$7*$B$7+F18*Variables!$C$9)/(Variables!$C$7+F18)),"") ->  | K18: =IF(G18>0,$D$24+(((Variables!$C$5*Variables!$C$8)/Variables!$C$6)*LN((F18*Variables!$C$9-Variables!$C$7*$D$25)/(Variables!$C$7+F18))),"") -> 
F19: =IF(E19>0,E19*Variables!$C$10,"") ->  | H19: =IF(G19>0,(Variables!$C$7+F19)*EXP(G19/((Variables!$C$5*Variables!$C$8)/Variables!$C$6)),"") ->  | I19: =IF(G19>0,G19-(Variables!$C$5*Variables!$C$8/Variables!$C$6)*LN((-Variables!$C$7*$B$7+F19*Variables!$C$9)/(Variables!$C$7+F19)),"") ->  | K19: =IF(G19>0,$D$24+(((Variables!$C$5*Variables!$C$8)/Variables!$C$6)*LN((F19*Variables!$C$9-Variables!$C$7*$D$25)/(Variables!$C$7+F19))),"") ->  | P19: Coefficients | Q19: Standard Error | R19: t Stat | S19: P-value | T19: Lower 95% | U19: Upper 95% | V19: Lower 95.0% | W19: Upper 95.0%
A20: R2 = | B20: =1-B17/B18 -> 0.9998376419 | F20: =IF(E20>0,E20*Variables!$C$10,"") ->  | H20: =IF(G20>0,(Variables!$C$7+F20)*EXP(G20/((Variables!$C$5*Variables!$C$8)/Variables!$C$6)),"") ->  | I20: =IF(G20>0,G20-(Variables!$C$5*Variables!$C$8/Variables!$C$6)*LN((-Variables!$C$7*$B$7+F20*Variables!$C$9)/(Variables!$C$7+F20)),"") ->  | K20: =IF(G20>0,$D$24+(((Variables!$C$5*Variables!$C$8)/Variables!$C$6)*LN((F20*Variables!$C$9-Variables!$C$7*$D$25)/(Variables!$C$7+F20))),"") ->  | O20: Intercept | P20: -478.6618624 | Q20: 1.785168028 | R20: -268.132666 | S20: 2.437038055e-22 | T20: -482.5909907 | U20: -474.7327341 | V20: -482.5909907 | W20: -474.7327341
F21: =IF(E21>0,E21*Variables!$C$10,"") ->  | H21: =IF(G21>0,(Variables!$C$7+F21)*EXP(G21/((Variables!$C$5*Variables!$C$8)/Variables!$C$6)),"") ->  | I21: =IF(G21>0,G21-(Variables!$C$5*Variables!$C$8/Variables!$C$6)*LN((-Variables!$C$7*$B$7+F21*Variables!$C$9)/(Variables!$C$7+F21)),"") ->  | K21: =IF(G21>0,$D$24+(((Variables!$C$5*Variables!$C$8)/Variables!$C$6)*LN((F21*Variables!$C$9-Variables!$C$7*$D$25)/(Variables!$C$7+F21))),"") ->  | O21: X Variable 1 | P21: 901492.9717 | Q21: 2288.735704 | R21: 393.8825134 | S21: 3.546962454e-24 | T21: 896455.4984 | U21: 906530.445 | V21: 896455.4984 | W21: 906530.445
A22: Solver inputs and solutions: | F22: =IF(E22>0,E22*Variables!$C$10,"") ->  | H22: =IF(G22>0,(Variables!$C$7+F22)*EXP(G22/((Variables!$C$5*Variables!$C$8)/Variables!$C$6)),"") ->  | I22: =IF(G22>0,G22-(Variables!$C$5*Variables!$C$8/Variables!$C$6)*LN((-Variables!$C$7*$B$7+F22*Variables!$C$9)/(Variables!$C$7+F22)),"") ->  | K22: =IF(G22>0,$D$24+(((Variables!$C$5*Variables!$C$8)/Variables!$C$6)*LN((F22*Variables!$C$9-Variables!$C$7*$D$25)/(Variables!$C$7+F22))),"") -> 
A23: Parameters | B23: Units | C23: Estimate | D23: Solution | F23: =IF(E23>0,E23*Variables!$C$10,"") ->  | H23: =IF(G23>0,(Variables!$C$7+F23)*EXP(G23/((Variables!$C$5*Variables!$C$8)/Variables!$C$6)),"") ->  | I23: =IF(G23>0,G23-(Variables!$C$5*Variables!$C$8/Variables!$C$6)*LN((-Variables!$C$7*$B$7+F23*Variables!$C$9)/(Variables!$C$7+F23)),"") ->  | K23: =IF(G23>0,$D$24+(((Variables!$C$5*Variables!$C$8)/Variables!$C$6)*LN((F23*Variables!$C$9-Variables!$C$7*$D$25)/(Variables!$C$7+F23))),"") -> 
A24: Eo | B24: volts | C24: =B9 -> 0.420752941 | D24: 0.4206559478 | F24: =IF(E24>0,E24*Variables!$C$10,"") ->  | H24: =IF(G24>0,(Variables!$C$7+F24)*EXP(G24/((Variables!$C$5*Variables!$C$8)/Variables!$C$6)),"") ->  | I24: =IF(G24>0,G24-(Variables!$C$5*Variables!$C$8/Variables!$C$6)*LN((-Variables!$C$7*$B$7+F24*Variables!$C$9)/(Variables!$C$7+F24)),"") ->  | K24: =IF(G24>0,$D$24+(((Variables!$C$5*Variables!$C$8)/Variables!$C$6)*LN((F24*Variables!$C$9-Variables!$C$7*$D$25)/(Variables!$C$7+F24))),"") -> 
A25: AT | B25: mol/kg soln | C25: =B7 -> 0.002224391941 | D25: 0.002221008717 | F25: =IF(E25>0,E25*Variables!$C$10,"") ->  | H25: =IF(G25>0,(Variables!$C$7+F25)*EXP(G25/((Variables!$C$5*Variables!$C$8)/Variables!$C$6)),"") ->  | I25: =IF(G25>0,G25-(Variables!$C$5*Variables!$C$8/Variables!$C$6)*LN((-Variables!$C$7*$B$7+F25*Variables!$C$9)/(Variables!$C$7+F25)),"") ->  | K25: =IF(G25>0,$D$24+(((Variables!$C$5*Variables!$C$8)/Variables!$C$6)*LN((F25*Variables!$C$9-Variables!$C$7*$D$25)/(Variables!$C$7+F25))),"") -> 
F26: =IF(E26>0,E26*Variables!$C$10,"") ->  | H26: =IF(G26>0,(Variables!$C$7+F26)*EXP(G26/((Variables!$C$5*Variables!$C$8)/Variables!$C$6)),"") ->  | I26: =IF(G26>0,G26-(Variables!$C$5*Variables!$C$8/Variables!$C$6)*LN((-Variables!$C$7*$B$7+F26*Variables!$C$9)/(Variables!$C$7+F26)),"") ->  | K26: =IF(G26>0,$D$24+(((Variables!$C$5*Variables!$C$8)/Variables!$C$6)*LN((F26*Variables!$C$9-Variables!$C$7*$D$25)/(Variables!$C$7+F26))),"") -> 
F27: =IF(E27>0,E27*Variables!$C$10,"") ->  | H27: =IF(G27>0,(Variables!$C$7+F27)*EXP(G27/((Variables!$C$5*Variables!$C$8)/Variables!$C$6)),"") ->  | I27: =IF(G27>0,G27-(Variables!$C$5*Variables!$C$8/Variables!$C$6)*LN((-Variables!$C$7*$B$7+F27*Variables!$C$9)/(Variables!$C$7+F27)),"") ->  | K27: =IF(G27>0,$D$24+(((Variables!$C$5*Variables!$C$8)/Variables!$C$6)*LN((F27*Variables!$C$9-Variables!$C$7*$D$25)/(Variables!$C$7+F27))),"") -> 
A28: *NOTE: for regression, select output range cell = $O$4 | F28: =IF(E28>0,E28*Variables!$C$10,"") ->  | H28: =IF(G28>0,(Variables!$C$7+F28)*EXP(G28/((Variables!$C$5*Variables!$C$8)/Variables!$C$6)),"") ->  | I28: =IF(G28>0,G28-(Variables!$C$5*Variables!$C$8/Variables!$C$6)*LN((-Variables!$C$7*$B$7+F28*Variables!$C$9)/(Variables!$C$7+F28)),"") ->  | K28: =IF(G28>0,$D$24+(((Variables!$C$5*Variables!$C$8)/Variables!$C$6)*LN((F28*Variables!$C$9-Variables!$C$7*$D$25)/(Variables!$C$7+F28))),"") -> 
F29: =IF(E29>0,E29*Variables!$C$10,"") ->  | H29: =IF(G29>0,(Variables!$C$7+F29)*EXP(G29/((Variables!$C$5*Variables!$C$8)/Variables!$C$6)),"") ->  | I29: =IF(G29>0,G29-(Variables!$C$5*Variables!$C$8/Variables!$C$6)*LN((-Variables!$C$7*$B$7+F29*Variables!$C$9)/(Variables!$C$7+F29)),"") ->  | K29: =IF(G29>0,$D$24+(((Variables!$C$5*Variables!$C$8)/Variables!$C$6)*LN((F29*Variables!$C$9-Variables!$C$7*$D$25)/(Variables!$C$7+F29))),"") -> 
F30: =IF(E30>0,E30*Variables!$C$10,"") ->  | H30: =IF(G30>0,(Variables!$C$7+F30)*EXP(G30/((Variables!$C$5*Variables!$C$8)/Variables!$C$6)),"") ->  | I30: =IF(G30>0,G30-(Variables!$C$5*Variables!$C$8/Variables!$C$6)*LN((-Variables!$C$7*$B$7+F30*Variables!$C$9)/(Variables!$C$7+F30)),"") ->  | K30: =IF(G30>0,$D$24+(((Variables!$C$5*Variables!$C$8)/Variables!$C$6)*LN((F30*Variables!$C$9-Variables!$C$7*$D$25)/(Variables!$C$7+F30))),"") -> 
F31: =IF(E31>0,E31*Variables!$C$10,"") ->  | H31: =IF(G31>0,(Variables!$C$7+F31)*EXP(G31/((Variables!$C$5*Variables!$C$8)/Variables!$C$6)),"") ->  | I31: =IF(G31>0,G31-(Variables!$C$5*Variables!$C$8/Variables!$C$6)*LN((-Variables!$C$7*$B$7+F31*Variables!$C$9)/(Variables!$C$7+F31)),"") ->  | K31: =IF(G31>0,$D$24+(((Variables!$C$5*Variables!$C$8)/Variables!$C$6)*LN((F31*Variables!$C$9-Variables!$C$7*$D$25)/(Variables!$C$7+F31))),"") -> 
F32: =IF(E32>0,E32*Variables!$C$10,"") ->  | H32: =IF(G32>0,(Variables!$C$7+F32)*EXP(G32/((Variables!$C$5*Variables!$C$8)/Variables!$C$6)),"") ->  | I32: =IF(G32>0,G32-(Variables!$C$5*Variables!$C$8/Variables!$C$6)*LN((-Variables!$C$7*$B$7+F32*Variables!$C$9)/(Variables!$C$7+F32)),"") ->  | K32: =IF(G32>0,$D$24+(((Variables!$C$5*Variables!$C$8)/Variables!$C$6)*LN((F32*Variables!$C$9-Variables!$C$7*$D$25)/(Variables!$C$7+F32))),"") -> 
F33: =IF(E33>0,E33*Variables!$C$10,"") ->  | H33: =IF(G33>0,(Variables!$C$7+F33)*EXP(G33/((Variables!$C$5*Variables!$C$8)/Variables!$C$6)),"") ->  | I33: =IF(G33>0,G33-(Variables!$C$5*Variables!$C$8/Variables!$C$6)*LN((-Variables!$C$7*$B$7+F33*Variables!$C$9)/(Variables!$C$7+F33)),"") ->  | K33: =IF(G33>0,$D$24+(((Variables!$C$5*Variables!$C$8)/Variables!$C$6)*LN((F33*Variables!$C$9-Variables!$C$7*$D$25)/(Variables!$C$7+F33))),"") -> 
F34: =IF(E34>0,E34*Variables!$C$10,"") ->  | H34: =IF(G34>0,(Variables!$C$7+F34)*EXP(G34/((Variables!$C$5*Variables!$C$8)/Variables!$C$6)),"") ->  | I34: =IF(G34>0,G34-(Variables!$C$5*Variables!$C$8/Variables!$C$6)*LN((-Variables!$C$7*$B$7+F34*Variables!$C$9)/(Variables!$C$7+F34)),"") ->  | K34: =IF(G34>0,$D$24+(((Variables!$C$5*Variables!$C$8)/Variables!$C$6)*LN((F34*Variables!$C$9-Variables!$C$7*$D$25)/(Variables!$C$7+F34))),"") -> 
F35: =IF(E35>0,E35*Variables!$C$10,"") ->  | H35: =IF(G35>0,(Variables!$C$7+F35)*EXP(G35/((Variables!$C$5*Variables!$C$8)/Variables!$C$6)),"") ->  | I35: =IF(G35>0,G35-(Variables!$C$5*Variables!$C$8/Variables!$C$6)*LN((-Variables!$C$7*$B$7+F35*Variables!$C$9)/(Variables!$C$7+F35)),"") ->  | K35: =IF(G35>0,$D$24+(((Variables!$C$5*Variables!$C$8)/Variables!$C$6)*LN((F35*Variables!$C$9-Variables!$C$7*$D$25)/(Variables!$C$7+F35))),"") -> 
F36: =IF(E36>0,E36*Variables!$C$10,"") ->  | H36: =IF(G36>0,(Variables!$C$7+F36)*EXP(G36/((Variables!$C$5*Variables!$C$8)/Variables!$C$6)),"") ->  | I36: =IF(G36>0,G36-(Variables!$C$5*Variables!$C$8/Variables!$C$6)*LN((-Variables!$C$7*$B$7+F36*Variables!$C$9)/(Variables!$C$7+F36)),"") ->  | K36: =IF(G36>0,$D$24+(((Variables!$C$5*Variables!$C$8)/Variables!$C$6)*LN((F36*Variables!$C$9-Variables!$C$7*$D$25)/(Variables!$C$7+F36))),"") -> 
F37: =IF(E37>0,E37*Variables!$C$10,"") ->  | H37: =IF(G37>0,(Variables!$C$7+F37)*EXP(G37/((Variables!$C$5*Variables!$C$8)/Variables!$C$6)),"") ->  | I37: =IF(G37>0,G37-(Variables!$C$5*Variables!$C$8/Variables!$C$6)*LN((-Variables!$C$7*$B$7+F37*Variables!$C$9)/(Variables!$C$7+F37)),"") ->  | K37: =IF(G37>0,$D$24+(((Variables!$C$5*Variables!$C$8)/Variables!$C$6)*LN((F37*Variables!$C$9-Variables!$C$7*$D$25)/(Variables!$C$7+F37))),"") -> 
F38: =IF(E38>0,E38*Variables!$C$10,"") ->  | H38: =IF(G38>0,(Variables!$C$7+F38)*EXP(G38/((Variables!$C$5*Variables!$C$8)/Variables!$C$6)),"") ->  | I38: =IF(G38>0,G38-(Variables!$C$5*Variables!$C$8/Variables!$C$6)*LN((-Variables!$C$7*$B$7+F38*Variables!$C$9)/(Variables!$C$7+F38)),"") ->  | K38: =IF(G38>0,$D$24+(((Variables!$C$5*Variables!$C$8)/Variables!$C$6)*LN((F38*Variables!$C$9-Variables!$C$7*$D$25)/(Variables!$C$7+F38))),"") -> 
F39: =IF(E39>0,E39*Variables!$C$10,"") ->  | H39: =IF(G39>0,(Variables!$C$7+F39)*EXP(G39/((Variables!$C$5*Variables!$C$8)/Variables!$C$6)),"") ->  | I39: =IF(G39>0,G39-(Variables!$C$5*Variables!$C$8/Variables!$C$6)*LN((-Variables!$C$7*$B$7+F39*Variables!$C$9)/(Variables!$C$7+F39)),"") ->  | K39: =IF(G39>0,$D$24+(((Variables!$C$5*Variables!$C$8)/Variables!$C$6)*LN((F39*Variables!$C$9-Variables!$C$7*$D$25)/(Variables!$C$7+F39))),"") -> 
F40: =IF(E40>0,E40*Variables!$C$10,"") ->  | H40: =IF(G40>0,(Variables!$C$7+F40)*EXP(G40/((Variables!$C$5*Variables!$C$8)/Variables!$C$6)),"") ->  | I40: =IF(G40>0,G40-(Variables!$C$5*Variables!$C$8/Variables!$C$6)*LN((-Variables!$C$7*$B$7+F40*Variables!$C$9)/(Variables!$C$7+F40)),"") ->  | K40: =IF(G40>0,$D$24+(((Variables!$C$5*Variables!$C$8)/Variables!$C$6)*LN((F40*Variables!$C$9-Variables!$C$7*$D$25)/(Variables!$C$7+F40))),"") -> 
F41: =IF(E41>0,E41*Variables!$C$10,"") ->  | H41: =IF(G41>0,(Variables!$C$7+F41)*EXP(G41/((Variables!$C$5*Variables!$C$8)/Variables!$C$6)),"") ->  | I41: =IF(G41>0,G41-(Variables!$C$5*Variables!$C$8/Variables!$C$6)*LN((-Variables!$C$7*$B$7+F41*Variables!$C$9)/(Variables!$C$7+F41)),"") ->  | K41: =IF(G41>0,$D$24+(((Variables!$C$5*Variables!$C$8)/Variables!$C$6)*LN((F41*Variables!$C$9-Variables!$C$7*$D$25)/(Variables!$C$7+F41))),"") -> 
F42: =IF(E42>0,E42*Variables!$C$10,"") ->  | H42: =IF(G42>0,(Variables!$C$7+F42)*EXP(G42/((Variables!$C$5*Variables!$C$8)/Variables!$C$6)),"") ->  | I42: =IF(G42>0,G42-(Variables!$C$5*Variables!$C$8/Variables!$C$6)*LN((-Variables!$C$7*$B$7+F42*Variables!$C$9)/(Variables!$C$7+F42)),"") ->  | K42: =IF(G42>0,$D$24+(((Variables!$C$5*Variables!$C$8)/Variables!$C$6)*LN((F42*Variables!$C$9-Variables!$C$7*$D$25)/(Variables!$C$7+F42))),"") -> 
F43: =IF(E43>0,E43*Variables!$C$10,"") ->  | H43: =IF(G43>0,(Variables!$C$7+F43)*EXP(G43/((Variables!$C$5*Variables!$C$8)/Variables!$C$6)),"") ->  | I43: =IF(G43>0,G43-(Variables!$C$5*Variables!$C$8/Variables!$C$6)*LN((-Variables!$C$7*$B$7+F43*Variables!$C$9)/(Variables!$C$7+F43)),"") ->  | K43: =IF(G43>0,$D$24+(((Variables!$C$5*Variables!$C$8)/Variables!$C$6)*LN((F43*Variables!$C$9-Variables!$C$7*$D$25)/(Variables!$C$7+F43))),"") -> 
F44: =IF(E44>0,E44*Variables!$C$10,"") ->  | H44: =IF(G44>0,(Variables!$C$7+F44)*EXP(G44/((Variables!$C$5*Variables!$C$8)/Variables!$C$6)),"") ->  | I44: =IF(G44>0,G44-(Variables!$C$5*Variables!$C$8/Variables!$C$6)*LN((-Variables!$C$7*$B$7+F44*Variables!$C$9)/(Variables!$C$7+F44)),"") ->  | K44: =IF(G44>0,$D$24+(((Variables!$C$5*Variables!$C$8)/Variables!$C$6)*LN((F44*Variables!$C$9-Variables!$C$7*$D$25)/(Variables!$C$7+F44))),"") -> 
F45: =IF(E45>0,E45*Variables!$C$10,"") ->  | H45: =IF(G45>0,(Variables!$C$7+F45)*EXP(G45/((Variables!$C$5*Variables!$C$8)/Variables!$C$6)),"") ->  | I45: =IF(G45>0,G45-(Variables!$C$5*Variables!$C$8/Variables!$C$6)*LN((-Variables!$C$7*$B$7+F45*Variables!$C$9)/(Variables!$C$7+F45)),"") ->  | K45: =IF(G45>0,$D$24+(((Variables!$C$5*Variables!$C$8)/Variables!$C$6)*LN((F45*Variables!$C$9-Variables!$C$7*$D$25)/(Variables!$C$7+F45))),"") -> 
F46: =IF(E46>0,E46*Variables!$C$10,"") ->  | H46: =IF(G46>0,(Variables!$C$7+F46)*EXP(G46/((Variables!$C$5*Variables!$C$8)/Variables!$C$6)),"") ->  | I46: =IF(G46>0,G46-(Variables!$C$5*Variables!$C$8/Variables!$C$6)*LN((-Variables!$C$7*$B$7+F46*Variables!$C$9)/(Variables!$C$7+F46)),"") ->  | K46: =IF(G46>0,$D$24+(((Variables!$C$5*Variables!$C$8)/Variables!$C$6)*LN((F46*Variables!$C$9-Variables!$C$7*$D$25)/(Variables!$C$7+F46))),"") -> 
F47: =IF(E47>0,E47*Variables!$C$10,"") ->  | H47: =IF(G47>0,(Variables!$C$7+F47)*EXP(G47/((Variables!$C$5*Variables!$C$8)/Variables!$C$6)),"") ->  | I47: =IF(G47>0,G47-(Variables!$C$5*Variables!$C$8/Variables!$C$6)*LN((-Variables!$C$7*$B$7+F47*Variables!$C$9)/(Variables!$C$7+F47)),"") ->  | K47: =IF(G47>0,$D$24+(((Variables!$C$5*Variables!$C$8)/Variables!$C$6)*LN((F47*Variables!$C$9-Variables!$C$7*$D$25)/(Variables!$C$7+F47))),"") -> 
F48: =IF(E48>0,E48*Variables!$C$10,"") ->  | H48: =IF(G48>0,(Variables!$C$7+F48)*EXP(G48/((Variables!$C$5*Variables!$C$8)/Variables!$C$6)),"") ->  | I48: =IF(G48>0,G48-(Variables!$C$5*Variables!$C$8/Variables!$C$6)*LN((-Variables!$C$7*$B$7+F48*Variables!$C$9)/(Variables!$C$7+F48)),"") ->  | K48: =IF(G48>0,$D$24+(((Variables!$C$5*Variables!$C$8)/Variables!$C$6)*LN((F48*Variables!$C$9-Variables!$C$7*$D$25)/(Variables!$C$7+F48))),"") -> 
F49: =IF(E49>0,E49*Variables!$C$10,"") ->  | H49: =IF(G49>0,(Variables!$C$7+F49)*EXP(G49/((Variables!$C$5*Variables!$C$8)/Variables!$C$6)),"") ->  | I49: =IF(G49>0,G49-(Variables!$C$5*Variables!$C$8/Variables!$C$6)*LN((-Variables!$C$7*$B$7+F49*Variables!$C$9)/(Variables!$C$7+F49)),"") ->  | K49: =IF(G49>0,$D$24+(((Variables!$C$5*Variables!$C$8)/Variables!$C$6)*LN((F49*Variables!$C$9-Variables!$C$7*$D$25)/(Variables!$C$7+F49))),"") -> 
F50: =IF(E50>0,E50*Variables!$C$10,"") ->  | H50: =IF(G50>0,(Variables!$C$7+F50)*EXP(G50/((Variables!$C$5*Variables!$C$8)/Variables!$C$6)),"") ->  | I50: =IF(G50>0,G50-(Variables!$C$5*Variables!$C$8/Variables!$C$6)*LN((-Variables!$C$7*$B$7+F50*Variables!$C$9)/(Variables!$C$7+F50)),"") ->  | K50: =IF(G50>0,$D$24+(((Variables!$C$5*Variables!$C$8)/Variables!$C$6)*LN((F50*Variables!$C$9-Variables!$C$7*$D$25)/(Variables!$C$7+F50))),"") -> 
F51: =IF(E51>0,E51*Variables!$C$10,"") ->  | H51: =IF(G51>0,(Variables!$C$7+F51)*EXP(G51/((Variables!$C$5*Variables!$C$8)/Variables!$C$6)),"") ->  | I51: =IF(G51>0,G51-(Variables!$C$5*Variables!$C$8/Variables!$C$6)*LN((-Variables!$C$7*$B$7+F51*Variables!$C$9)/(Variables!$C$7+F51)),"") ->  | K51: =IF(G51>0,$D$24+(((Variables!$C$5*Variables!$C$8)/Variables!$C$6)*LN((F51*Variables!$C$9-Variables!$C$7*$D$25)/(Variables!$C$7+F51))),"") -> 
F52: =IF(E52>0,E52*Variables!$C$10,"") ->  | H52: =IF(G52>0,(Variables!$C$7+F52)*EXP(G52/((Variables!$C$5*Variables!$C$8)/Variables!$C$6)),"") ->  | I52: =IF(G52>0,G52-(Variables!$C$5*Variables!$C$8/Variables!$C$6)*LN((-Variables!$C$7*$B$7+F52*Variables!$C$9)/(Variables!$C$7+F52)),"") ->  | K52: =IF(G52>0,$D$24+(((Variables!$C$5*Variables!$C$8)/Variables!$C$6)*LN((F52*Variables!$C$9-Variables!$C$7*$D$25)/(Variables!$C$7+F52))),"") -> 
F53: =IF(E53>0,E53*Variables!$C$10,"") ->  | H53: =IF(G53>0,(Variables!$C$7+F53)*EXP(G53/((Variables!$C$5*Variables!$C$8)/Variables!$C$6)),"") ->  | I53: =IF(G53>0,G53-(Variables!$C$5*Variables!$C$8/Variables!$C$6)*LN((-Variables!$C$7*$B$7+F53*Variables!$C$9)/(Variables!$C$7+F53)),"") ->  | K53: =IF(G53>0,$D$24+(((Variables!$C$5*Variables!$C$8)/Variables!$C$6)*LN((F53*Variables!$C$9-Variables!$C$7*$D$25)/(Variables!$C$7+F53))),"") -> 
F54: =IF(E54>0,E54*Variables!$C$10,"") ->  | H54: =IF(G54>0,(Variables!$C$7+F54)*EXP(G54/((Variables!$C$5*Variables!$C$8)/Variables!$C$6)),"") ->  | I54: =IF(G54>0,G54-(Variables!$C$5*Variables!$C$8/Variables!$C$6)*LN((-Variables!$C$7*$B$7+F54*Variables!$C$9)/(Variables!$C$7+F54)),"") ->  | K54: =IF(G54>0,$D$24+(((Variables!$C$5*Variables!$C$8)/Variables!$C$6)*LN((F54*Variables!$C$9-Variables!$C$7*$D$25)/(Variables!$C$7+F54))),"") -> 
F55: =IF(E55>0,E55*Variables!$C$10,"") ->  | H55: =IF(G55>0,(Variables!$C$7+F55)*EXP(G55/((Variables!$C$5*Variables!$C$8)/Variables!$C$6)),"") ->  | I55: =IF(G55>0,G55-(Variables!$C$5*Variables!$C$8/Variables!$C$6)*LN((-Variables!$C$7*$B$7+F55*Variables!$C$9)/(Variables!$C$7+F55)),"") ->  | K55: =IF(G55>0,$D$24+(((Variables!$C$5*Variables!$C$8)/Variables!$C$6)*LN((F55*Variables!$C$9-Variables!$C$7*$D$25)/(Variables!$C$7+F55))),"") -> 
F56: =IF(E56>0,E56*Variables!$C$10,"") ->  | H56: =IF(G56>0,(Variables!$C$7+F56)*EXP(G56/((Variables!$C$5*Variables!$C$8)/Variables!$C$6)),"") ->  | I56: =IF(G56>0,G56-(Variables!$C$5*Variables!$C$8/Variables!$C$6)*LN((-Variables!$C$7*$B$7+F56*Variables!$C$9)/(Variables!$C$7+F56)),"") ->  | K56: =IF(G56>0,$D$24+(((Variables!$C$5*Variables!$C$8)/Variables!$C$6)*LN((F56*Variables!$C$9-Variables!$C$7*$D$25)/(Variables!$C$7+F56))),"") -> 
F57: =IF(E57>0,E57*Variables!$C$10,"") ->  | H57: =IF(G57>0,(Variables!$C$7+F57)*EXP(G57/((Variables!$C$5*Variables!$C$8)/Variables!$C$6)),"") ->  | I57: =IF(G57>0,G57-(Variables!$C$5*Variables!$C$8/Variables!$C$6)*LN((-Variables!$C$7*$B$7+F57*Variables!$C$9)/(Variables!$C$7+F57)),"") ->  | K57: =IF(G57>0,$D$24+(((Variables!$C$5*Variables!$C$8)/Variables!$C$6)*LN((F57*Variables!$C$9-Variables!$C$7*$D$25)/(Variables!$C$7+F57))),"") -> 
F58: =IF(E58>0,E58*Variables!$C$10,"") ->  | H58: =IF(G58>0,(Variables!$C$7+F58)*EXP(G58/((Variables!$C$5*Variables!$C$8)/Variables!$C$6)),"") ->  | I58: =IF(G58>0,G58-(Variables!$C$5*Variables!$C$8/Variables!$C$6)*LN((-Variables!$C$7*$B$7+F58*Variables!$C$9)/(Variables!$C$7+F58)),"") ->  | K58: =IF(G58>0,$D$24+(((Variables!$C$5*Variables!$C$8)/Variables!$C$6)*LN((F58*Variables!$C$9-Variables!$C$7*$D$25)/(Variables!$C$7+F58))),"") -> 
F59: =IF(E59>0,E59*Variables!$C$10,"") ->  | H59: =IF(G59>0,(Variables!$C$7+F59)*EXP(G59/((Variables!$C$5*Variables!$C$8)/Variables!$C$6)),"") ->  | I59: =IF(G59>0,G59-(Variables!$C$5*Variables!$C$8/Variables!$C$6)*LN((-Variables!$C$7*$B$7+F59*Variables!$C$9)/(Variables!$C$7+F59)),"") ->  | K59: =IF(G59>0,$D$24+(((Variables!$C$5*Variables!$C$8)/Variables!$C$6)*LN((F59*Variables!$C$9-Variables!$C$7*$D$25)/(Variables!$C$7+F59))),"") -> 
F60: =IF(E60>0,E60*Variables!$C$10,"") ->  | H60: =IF(G60>0,(Variables!$C$7+F60)*EXP(G60/((Variables!$C$5*Variables!$C$8)/Variables!$C$6)),"") ->  | I60: =IF(G60>0,G60-(Variables!$C$5*Variables!$C$8/Variables!$C$6)*LN((-Variables!$C$7*$B$7+F60*Variables!$C$9)/(Variables!$C$7+F60)),"") ->  | K60: =IF(G60>0,$D$24+(((Variables!$C$5*Variables!$C$8)/Variables!$C$6)*LN((F60*Variables!$C$9-Variables!$C$7*$D$25)/(Variables!$C$7+F60))),"") -> 
F61: =IF(E61>0,E61*Variables!$C$10,"") ->  | H61: =IF(G61>0,(Variables!$C$7+F61)*EXP(G61/((Variables!$C$5*Variables!$C$8)/Variables!$C$6)),"") ->  | I61: =IF(G61>0,G61-(Variables!$C$5*Variables!$C$8/Variables!$C$6)*LN((-Variables!$C$7*$B$7+F61*Variables!$C$9)/(Variables!$C$7+F61)),"") ->  | K61: =IF(G61>0,$D$24+(((Variables!$C$5*Variables!$C$8)/Variables!$C$6)*LN((F61*Variables!$C$9-Variables!$C$7*$D$25)/(Variables!$C$7+F61))),"") -> 
F62: =IF(E62>0,E62*Variables!$C$10,"") ->  | H62: =IF(G62>0,(Variables!$C$7+F62)*EXP(G62/((Variables!$C$5*Variables!$C$8)/Variables!$C$6)),"") ->  | I62: =IF(G62>0,G62-(Variables!$C$5*Variables!$C$8/Variables!$C$6)*LN((-Variables!$C$7*$B$7+F62*Variables!$C$9)/(Variables!$C$7+F62)),"") ->  | K62: =IF(G62>0,$D$24+(((Variables!$C$5*Variables!$C$8)/Variables!$C$6)*LN((F62*Variables!$C$9-Variables!$C$7*$D$25)/(Variables!$C$7+F62))),"") -> 
F63: =IF(E63>0,E63*Variables!$C$10,"") ->  | H63: =IF(G63>0,(Variables!$C$7+F63)*EXP(G63/((Variables!$C$5*Variables!$C$8)/Variables!$C$6)),"") ->  | I63: =IF(G63>0,G63-(Variables!$C$5*Variables!$C$8/Variables!$C$6)*LN((-Variables!$C$7*$B$7+F63*Variables!$C$9)/(Variables!$C$7+F63)),"") ->  | K63: =IF(G63>0,$D$24+(((Variables!$C$5*Variables!$C$8)/Variables!$C$6)*LN((F63*Variables!$C$9-Variables!$C$7*$D$25)/(Variables!$C$7+F63))),"") -> 
